bitfinex/quotes_ETHUSD_20251217
["timestamp","ask_amount","ask_price","bid_price","bid_amount"]
[1765957035684,1.0386,2953.9,2953.8,0.001]
[1765957036272,0.3877,2953.9,2953.8,0.001]
[1765957036609,0.8538,2953.9,2953.8,0.001]
[1765957036780,0.3877,2953.9,2953.8,0.001]
[1765957037547,0.4661,2954.2,2953.8,0.001]
[1765957037701,0.544,2954.6,2953.8,0.001]
[1765957037877,0.4669,2954.5,2953.8,0.001]
[1765957038201,1.0378,2953.9,2953.8,0.001]
[1765957039101,0.3877,2953.9,2953.8,0.001]
[1765957039893,1.0378,2953.9,2953.8,0.001]
[1765957040591,0.4669,2954.6,2953.8,0.496]
[1765957040791,0.3877,2953.9,2953.8,0.001]
[1765957040971,1.0378,2953.9,2953.8,0.001]
[1765957042177,0.002,2954.9,2953.8,0.001]
[1765957042375,0.4669,2954.7,2953.8,0.001]
[1765957043703,0.3877,2953.9,2953.8,0.001]
[1765957043897,0.4661,2954.2,2953.8,0.001]
[1765957045306,0.4669,2954.7,2953.8,0.001]
[1765957045610,0.4669,2954.6,2954.0,0.01027714]
[1765957046304,0.4669,2954.6,2954.1,3.38512575]
[1765957046506,0.4669,2954.6,2953.8,0.01127714]
[1765957046507,0.3877,2953.9,2953.8,0.001]
[1765957046809,0.3877,2953.9,2953.8,3.38646956]
[1765957047186,1.0109,2954.5,2953.8,6.78221626]
[1765957047520,0.4669,2954.4,2953.8,10.16768582]
[1765957048679,0.4669,2954.4,2953.8,6.78221626]
[1765957051827,1.0378,2953.9,2953.8,3.38646956]
[1765957053923,1.0378,2953.9,2953.8,0.001]
[1765957054820,1.4800949,2953.9,2953.8,0.001]
[1765957055803,1.0378,2953.9,2953.8,0.001]
[1765957064735,4.42315495,2953.9,2953.8,0.001]
[1765957066631,5.29303918,2953.9,2953.8,0.001]
[1765957068340,0.8536,2953.5,2953.4,0.001]
[1765957071219,4.23941344,2953.5,2953.4,0.001]
[1765957071425,5.46240265,2953.5,2953.4,0.001]
[1765957072668,2.07658921,2953.5,2953.4,0.001]
[1765957072943,0.8536,2953.5,2953.4,0.001]
[1765957073945,4.23941344,2953.5,2953.4,0.001]
[1765957074123,4.64491744,2953.5,2953.4,0.001]
[1765957074326,5.18691744,2953.5,2953.4,0.001]
[1765957075437,4.64491744,2953.5,2953.4,0.001]
[1765957075640,6.45045705,2953.5,2953.4,0.001]
[1765957076348,6.91483728,2953.5,2953.4,0.001]
[1765957076551,8.66169249,2952.8,2952.7,0.001]
[1765957076741,0.6703,2952.8,2952.7,0.001]
[1765957076938,8.66169249,2952.8,2952.7,0.001]
[1765957077468,4.52129632,2952.8,2952.7,0.001]
[1765957080133,9.12607272,2952.8,2952.7,0.001]
[1765957080463,1.31458023,2952.7,2952.6,0.001]
[1765957081045,4.70131101,2952.7,2952.6,0.001]
[1765957082262,4.70131101,2952.7,2952.2,0.001]
[1765957082263,0.4919,2952.3,2952.2,0.001]
[1765957083465,3.87908964,2952.3,2952.2,0.001]
[1765957083665,5.12037433,2952.3,2952.2,0.001]
[1765957084146,1.73318469,2952.3,2952.2,0.001]
[1765957085158,0.4919,2952.3,2952.2,0.001]
[1765957088041,3.87908964,2952.3,2952.2,0.001]
[1765957088543,0.4919,2952.3,2952.2,0.001]
[1765957089069,0.46438023,2952.7,2952.2,0.001]
[1765957089070,0.182,2952.8,2952.2,3.54848218]
[1765957089378,0.682,2953.1,2952.6,0.50137714]
[1765957089539,0.3551,2952.8,2952.7,3.38673078]
[1765957089966,0.8417,2952.8,2952.7,3.38673078]
[1765957090169,6.93333587,2953.5,2952.7,3.38673078]
[1765957090170,0.194,2953.5,2952.7,6.77346156]
[1765957090369,0.49,2953.8,2952.9,0.4911]
[1765957090568,0.49,2953.8,2953.0,0.542]
[1765957091469,0.49,2953.8,2953.1,10.15881615]
[1765957092275,0.49,2953.8,2953.3,0.50137714]
[1765957092450,0.002,2953.8,2953.3,0.50137714]
[1765957093066,0.49,2953.8,2953.4,0.542]
[1765957093648,0.49,2953.8,2953.5,6.77162688]
[1765957093951,0.002,2953.8,2953.5,7.85288633]
[1765957096248,0.4729,2953.6,2953.5,3.38581344]
[1765957098347,0.8329,2953.6,2953.5,3.38581344]
[1765957098640,0.4729,2953.6,2953.5,3.38581344]
[1765957099577,0.8329,2953.6,2953.5,3.38581344]
[1765957100956,0.4729,2953.3,2953.2,3.85053761]
[1765957101974,0.4729,2953.3,2953.2,3.38615738]
[1765957102180,0.8329,2953.3,2953.2,3.38615738]
[1765957102387,0.362,2953.6,2953.1,6.7725441]
[1765957103369,0.4718,2953.2,2953.1,3.38627205]
[1765957103544,0.833,2953.2,2953.1,3.38627205]
[1765957104675,0.4916,2953.1,2953.0,3.92835723]
[1765957107782,0.4916,2953.1,2953.0,0.542]
[1765957108182,3.38584376,2953.5,2952.9,3.38644576]
[1765957108183,0.8296,2953.0,2952.9,3.38644576]
[1765957108884,0.007,2952.7,2952.6,3.92784549]
[1765957109599,0.682,2953.4,2952.6,7.77646812]
[1765957109776,0.488,2953.3,2952.8,0.01027714]
[1765957109981,0.002,2953.6,2953.2,0.01027714]
[1765957110195,0.002,2953.6,2953.2,0.50137714]
[1765957110693,0.002,2953.6,2953.2,0.01027714]
[1765957111121,0.002,2953.6,2953.2,0.50137714]
[1765957111611,0.002,2953.6,2953.3,6.77208546]
[1765957112305,0.49,2953.6,2953.3,6.77208546]
[1765957113209,0.002,2953.6,2953.3,6.77208546]
[1765957113417,0.002,2953.6,2953.3,7.26318546]
[1765957113972,0.002,2953.6,2953.3,6.77208546]
[1765957116694,0.3404,2953.5,2953.4,0.541]
[1765957118309,0.3404,2953.5,2953.4,3.92692808]
[1765957120008,0.8208,2953.5,2953.4,3.92692808]
[1765957122205,0.002,2953.6,2953.5,0.4727]
[1765957122608,0.002,2953.6,2953.5,3.85851344]
[1765957122804,0.002,2953.6,2953.5,3.86879058]
[1765957126912,0.002,2953.6,2953.5,10.87104272]
[1765957127207,0.002,2953.6,2953.5,23.80412981]
[1765957127596,0.002,2953.6,2953.5,22.75093959]
[1765957127797,0.002,2953.6,2953.5,13.95659559]
[1765957128197,0.002,2953.6,2953.5,9.13830539]
[1765957128792,0.002,2953.6,2953.5,4.78737081]
[1765957130723,0.002,2953.6,2953.5,4.82122894]
[1765957131106,0.002,2953.6,2953.5,4.78737081]
[1765957131410,0.002,2953.6,2953.5,8.32825582]
[1765957133510,0.002,2953.6,2953.5,21.29520104]
[1765957133690,0.002,2953.6,2953.5,23.81844167]
[1765957133881,0.002,2953.6,2953.5,27.76483068]
[1765957134084,0.002,2953.6,2953.5,24.22394567]
[1765957135185,0.002,2953.6,2953.5,23.38803045]
[1765957135385,0.002,2953.6,2953.5,19.05244544]
[1765957136393,0.002,2953.6,2953.5,7.31061144]
[1765957136726,0.002,2953.6,2953.5,5.32737081]
[1765957142669,0.002,2953.6,2953.5,4.40047081]
[1765957142938,0.4539,2953.6,2953.5,4.40047081]
[1765957144211,0.4539,2953.6,2953.5,3.93609058]
[1765957144443,0.002,2953.6,2953.5,4.42789058]
[1765957144658,0.002,2953.6,2953.5,5.69545829]
[1765957144839,0.002,2953.6,2953.5,6.12598039]
[1765957145346,0.002,2953.6,2953.5,15.78627652]
[1765957145554,0.002,2953.6,2953.5,15.75241839]
[1765957146526,0.002,2953.6,2953.5,16.15792239]
[1765957147130,0.002,2953.6,2953.5,19.49842961]
[1765957147333,0.002,2953.6,2953.5,24.10050437]
[1765957148163,0.002,2953.6,2953.5,11.13355915]
[1765957149537,0.002,2953.6,2953.5,6.53148439]
[1765957149729,0.002,2953.6,2953.5,6.12598039]
[1765957149931,0.002,2953.6,2953.5,4.80357081]
[1765957150133,0.002,2953.6,2953.5,4.41761344]
[1765957150352,0.002,2953.6,2953.5,3.87761344]
[1765957150661,0.002,2953.6,2953.5,3.92581344]
[1765957150854,0.4573,2953.6,2953.5,3.92581344]
[1765957153429,0.9322,2953.6,2953.5,3.92581344]
[1765957155678,0.4573,2953.6,2953.5,3.92581344]
[1765957156837,0.9322,2953.6,2953.5,0.54]
[1765957157244,0.4725,2953.1,2953.0,0.01027714]
[1765957157444,0.4579,2953.4,2953.0,7.81484275]
[1765957157860,0.4724,2953.1,2953.0,3.93665603]
[1765957158239,0.9304,2953.1,2953.0,3.38637889]
[1765957159994,6.93128044,2953.6,2952.9,3.9265014]
[1765957159995,0.4797,2953.0,2952.9,3.9265014]
[1765957161551,0.4797,2953.0,2952.9,0.54]
[1765957161759,0.0046,2953.0,2952.9,3.9265014]
[1765957161960,0.4751,2953.2,2952.9,3.9265014]
[1765957162171,0.4553,2953.0,2952.9,3.9265014]
[1765957164186,0.9302,2953.0,2952.9,3.9265014]
[1765957164547,0.9302,2953.0,2952.9,0.54]
[1765957165580,0.9302,2953.0,2952.9,3.9265014]
[1765957167883,0.9302,2953.0,2952.9,0.54]
[1765957168785,0.4798,2952.7,2952.6,3.92679277]
[1765957169153,0.4798,2952.7,2952.6,0.54]
[1765957169564,0.0047,2952.7,2952.6,3.92684549]
[1765957169752,0.4751,2953.4,2952.6,10.85724958]
[1765957169953,0.4751,2953.4,2952.7,0.01027714]
[1765957170152,1.50719572,2953.3,2952.7,0.01027714]
[1765957170685,0.4751,2953.2,2952.8,6.77323218]
[1765957171563,0.4553,2953.0,2952.9,0.01027714]
[1765957171764,0.0046,2952.9,2952.8,3.38661609]
[1765957171974,0.4751,2953.2,2952.8,6.77323218]
[1765957173089,0.46638023,2953.6,2953.5,0.9431]
[1765957173090,0.002,2953.6,2953.5,0.9431]
[1765957173393,0.002,2953.6,2953.5,5.49103883]
[1765957173552,0.002,2953.6,2953.5,5.0266586]
[1765957174791,0.002,2953.6,2953.5,1.4831]
[1765957174955,0.002,2953.6,2953.5,5.22243434]
[1765957175148,0.002,2953.6,2953.5,8.60824778]
[1765957175374,0.002,2953.6,2953.5,5.06468918]
[1765957178912,0.002,2953.6,2953.5,9.66884746]
[1765957179776,0.002,2953.6,2953.5,5.06468918]
[1765957182163,0.002,2953.6,2953.5,4.86891344]
[1765957183863,0.002,2953.6,2953.5,4.41761344]
[1765957184272,0.002,2953.6,2953.5,4.90021344]
[1765957188713,0.002,2953.6,2953.5,4.91049058]
[1765957195479,0.002,2953.6,2953.5,8.4518046]
[1765957195777,0.002,2953.6,2953.5,9.63660549]
[1765957196400,0.17893406,2954.9,2954.1,0.6424]
[1765957196601,0.002,2954.9,2954.5,3.54131402]
[1765957196807,0.3695,2954.7,2954.6,0.54]
[1765957197180,0.3695,2954.7,2954.6,3.9245529]
[1765957197377,0.002,2954.9,2954.6,4.4228529]
[1765957197581,0.002,2954.9,2954.7,0.4983]
[1765957198377,0.002,2954.9,2954.7,4.52221402]
[1765957198788,0.002,2954.9,2954.7,0.9809]
[1765957199188,0.002,2954.9,2954.7,4.36533835]
[1765957199393,0.002,2954.9,2954.7,3.88273835]
[1765957200393,0.002,2954.9,2954.7,4.36533835]
[1765957201408,0.002,2954.9,2954.7,3.88273835]
[1765957201579,0.4718,2954.8,2954.7,3.38443835]
[1765957201911,0.4698,2954.4,2954.3,3.38489659]
[1765957202214,0.4698,2954.4,2954.3,3.92489659]
[1765957202511,0.4698,2954.4,2954.3,0.54]
[1765957202512,0.8487,2954.4,2954.3,0.54]
[1765957202710,0.9963,2953.9,2953.8,3.38546956]
[1765957202914,0.5191,2953.9,2953.8,3.92546956]
[1765957203416,0.3678,2953.9,2953.8,3.92546956]
[1765957203621,0.4772,2954.3,2953.8,7.31093912]
[1765957203797,0.4772,2954.7,2953.9,3.54131402]
[1765957204112,0.4772,2954.7,2953.9,3.55159116]
[1765957205713,0.4772,2954.7,2954.0,6.7704807]
[1765957205922,0.4124,2954.1,2954.0,3.38524035]
[1765957206619,0.4766,2954.1,2953.9,3.38530734]
[1765957206804,0.8889,2954.0,2953.9,3.38530734]
[1765957207125,0.413,2954.0,2953.9,3.38530734]
[1765957208019,0.8889,2954.0,2953.9,3.38530734]
[1765957208728,0.6679,2953.9,2953.8,0.54]
[1765957209022,0.6679,2953.9,2953.8,3.92546956]
[1765957209604,0.6679,2953.9,2953.8,0.54]
[1765957209804,0.6679,2953.9,2953.8,3.92546956]
[1765957210022,0.6679,2953.9,2953.8,0.54]
[1765957211805,0.6679,2953.9,2953.8,3.92546956]
[1765957212595,0.6679,2953.9,2953.8,3.38546956]
[1765957214146,0.6679,2953.9,2953.5,6.77162688]
[1765957214324,0.1909,2953.9,2953.5,6.77162688]
[1765957214526,0.4084,2953.6,2953.5,3.38581344]
[1765957215339,0.8847,2953.6,2953.5,3.38581344]
[1765957215536,0.4084,2953.6,2953.5,3.38581344]
[1765957215737,0.4084,2953.5,2953.4,0.001]
[1765957216047,0.8847,2953.5,2953.4,0.001]
[1765957219826,1.31173805,2953.5,2953.4,0.001]
[1765957220428,0.8847,2953.5,2953.4,0.001]
[1765957225056,4.27051344,2953.5,2953.4,0.001]
[1765957227259,0.8847,2953.5,2953.4,0.001]
[1765957227757,4.27051344,2953.5,2953.4,0.001]
[1765957228654,0.8847,2953.5,2953.4,0.001]
[1765957228957,4.79799528,2953.5,2953.4,0.001]
[1765957229274,1.41218184,2953.5,2953.4,0.001]
[1765957229436,4.79799528,2953.5,2953.4,0.001]
[1765957229761,1.41218184,2953.5,2953.4,0.001]
[1765957231978,4.79799528,2953.5,2953.4,0.001]
[1765957232955,1.41218184,2953.5,2953.4,0.001]
[1765957234378,4.79799528,2953.5,2953.4,0.001]
[1765957235572,1.41218184,2953.5,2953.4,0.001]
[1765957236168,4.79799528,2953.5,2953.4,0.001]
[1765957236347,4.27051344,2953.5,2953.4,0.001]
[1765957237249,0.8848,2952.6,2952.5,3.38792622]
[1765957238257,0.4615,2953.3,2952.5,0.5047696]
[1765957238567,0.4615,2953.3,2952.5,1.53753385]
[1765957239558,0.4615,2953.3,2952.5,2.07753385]
[1765957240045,0.4615,2953.3,2952.5,1.60763385]
[1765957240246,0.4237,2952.7,2952.6,3.38684549]
[1765957240446,0.4611,2953.0,2952.6,3.38684549]
[1765957240447,0.4611,2953.0,2952.6,6.77369098]
[1765957241249,0.4611,2953.0,2952.6,7.84489138]
[1765957243346,0.4611,2953.0,2952.6,8.31479138]
[1765957243646,0.4611,2953.0,2952.6,7.84489138]
[1765957245295,0.002,2953.5,2952.7,0.48017714]
[1765957245591,0.002,2953.5,2953.0,0.4699]
[1765957245754,0.4635,2953.5,2953.0,1.0099]
[1765957246356,0.4635,2953.5,2953.0,0.54]
[1765957246663,0.002,2953.5,2953.1,0.1838]
[1765957246863,0.002,2953.5,2953.1,0.6537]
[1765957247263,0.002,2953.5,2953.2,6.77231476]
[1765957247264,0.4635,2953.5,2953.2,6.77231476]
[1765957248092,0.4635,2953.5,2953.2,7.56994395]
[1765957248589,0.002,2953.5,2953.2,7.56994395]
[1765957249883,0.002,2953.5,2953.2,8.03984395]
[1765957252095,0.002,2953.5,2953.2,7.56994395]
[1765957255321,0.002,2953.5,2953.4,0.9279]
[1765957255492,0.002,2953.5,2953.4,5.16699852]
[1765957255697,0.002,2953.5,2953.4,4.69709852]
[1765957257914,0.002,2953.5,2953.4,5.23709852]
[1765957258211,0.4257,2953.5,2953.4,5.23709852]
[1765957258411,0.4257,2953.5,2953.4,4.38392808]
[1765957258606,0.4257,2953.5,2953.4,3.92592808]
[1765957260424,0.002,2953.5,2953.4,4.38392808]
[1765957261022,0.4261,2953.5,2953.4,3.92592808]
[1765957262019,0.4594,2953.4,2953.3,3.38603376]
[1765957262318,0.002,2953.5,2953.1,3.38727205]
[1765957262319,0.8848,2953.2,2953.1,3.38727205]
[1765957262520,0.4635,2953.5,2953.1,3.38727205]
[1765957262726,0.4237,2953.2,2953.1,3.38727205]
[1765957263737,0.8848,2953.2,2953.1,3.38727205]
[1765957264254,0.8848,2953.2,2953.1,0.001]
[1765957266155,0.8852,2953.2,2953.1,0.001]
[1765957268053,1.32798552,2953.2,2953.1,0.001]
[1765957269137,0.8852,2953.2,2953.1,0.001]
[1765957282150,0.4241,2953.2,2953.1,0.001]
[1765957282471,0.8847,2953.2,2953.1,0.001]
[1765957283869,4.27085738,2953.2,2953.1,0.001]
[1765957284047,7.81587967,2953.2,2953.1,0.001]
[1765957284248,5.7457519,2953.2,2953.1,0.001]
[1765957285269,2.35959452,2953.2,2953.1,0.001]
[1765957285677,5.7457519,2953.2,2953.1,0.001]
[1765957285975,2.35959452,2953.2,2953.1,0.001]
[1765957287378,0.8847,2953.2,2953.1,0.001]
[1765957288745,0.4747,2953.4,2953.1,0.001]
[1765957289060,0.002,2953.4,2953.1,0.001]
[1765957289659,0.4585,2953.2,2953.1,0.001]
[1765957292898,0.8851,2953.2,2953.1,0.001]
[1765957293686,4.87333452,2953.2,2953.1,0.001]
[1765957293889,8.2594919,2953.2,2953.1,0.001]
[1765957297201,1.32831223,2953.2,2953.1,0.001]
[1765957297385,0.4585,2953.2,2953.1,0.001]
[1765957297588,0.8851,2953.2,2953.1,0.001]
[1765957298590,0.4585,2953.2,2953.1,0.001]
[1765957299296,0.8851,2953.2,2953.1,0.001]
[1765957301805,1.32831223,2953.2,2953.1,0.001]
[1765957302422,4.71446961,2953.2,2953.1,0.001]
[1765957302627,1.32831223,2953.2,2953.1,0.001]
[1765957302911,4.71446961,2953.2,2953.1,0.001]
[1765957303234,0.4984,2953.1,2953.0,0.001]
[1765957303419,0.8813,2952.6,2952.5,0.001]
[1765957313351,4.42632229,2952.6,2952.5,0.001]
[1765957314249,0.5022,2952.3,2952.2,0.001]
[1765957314450,4.04722229,2952.3,2952.2,0.001]
[1765957314615,4.45194452,2952.3,2952.2,0.001]
[1765957315243,0.90692223,2952.3,2952.2,0.001]
[1765957318070,4.29411187,2952.3,2952.2,0.001]
[1765957318767,7.83913416,2952.3,2952.2,0.001]
[1765957319468,4.45194452,2952.3,2952.2,0.001]
[1765957319667,0.90692223,2952.3,2952.2,0.001]
[1765957319853,4.29411187,2952.3,2952.2,0.001]
[1765957320048,7.83913416,2952.3,2952.2,0.001]
[1765957321444,0.90692223,2952.3,2952.2,0.001]
[1765957321852,8.30351439,2952.3,2952.2,0.001]
[1765957322377,4.7584921,2952.3,2952.2,0.001]
[1765957323090,0.90692223,2952.3,2952.2,0.001]
[1765957326193,0.5022,2952.3,2952.2,0.001]
[1765957326694,0.0081,2952.3,2952.2,0.001]
[1765957326896,0.4961,2952.3,2952.2,0.001]
[1765957327693,0.17630339,2952.5,2952.2,0.001]
[1765957328003,0.46438023,2952.9,2952.2,0.001]
[1765957328179,0.488,2952.8,2952.2,0.001]
[1765957328874,0.3975,2952.3,2952.2,0.001]
[1765957330009,0.8846,2952.3,2952.2,0.001]
[1765957336607,0.8721,2951.1,2950.8,0.001]
[1765957336794,2.28566785,2951.1,2950.8,0.001]
[1765957336991,2.67725327,2951.1,2950.8,0.001]
[1765957337200,1.26368542,2951.1,2950.8,0.001]
[1765957337536,0.8721,2951.1,2950.8,0.001]
[1765957338210,4.26066697,2951.1,2950.8,0.001]
[1765957339212,0.8721,2951.1,2950.8,0.001]
[1765957340013,4.26066697,2951.1,2950.8,0.001]
[1765957340616,0.8721,2951.1,2950.8,0.001]
[1765957340796,4.44821499,2951.1,2950.8,0.001]
[1765957341394,1.05964802,2951.1,2950.8,0.001]
[1765957341597,0.8721,2951.1,2950.8,0.001]
[1765957343698,0.46438023,2951.4,2950.8,0.001]
[1765957343897,0.46438023,2951.6,2950.8,0.001]
[1765957344100,0.488,2951.5,2950.8,0.4534]
[1765957345110,0.488,2951.5,2950.9,6.77759326]
[1765957351526,0.3851,2951.1,2950.9,6.77759326]
[1765957351725,0.8721,2951.1,2950.9,3.38879663]
[1765957351929,0.3851,2951.1,2950.9,6.77759326]
[1765957352127,0.8721,2951.1,2950.9,3.38879663]
[1765957352432,0.8721,2951.1,2950.8,0.001]
[1765957353522,4.26066697,2951.1,2950.8,0.001]
[1765957353722,1.63700145,2951.1,2950.8,0.001]
[1765957353924,5.02556842,2951.1,2950.8,0.001]
[1765957354351,1.63700145,2951.1,2950.8,0.001]
[1765957354552,0.8721,2951.1,2950.8,0.001]
[1765957355054,4.26066697,2951.1,2950.8,0.001]
[1765957355426,0.8721,2951.1,2950.8,0.001]
[1765957362065,8.85346187,2951.1,2950.8,0.001]
[1765957362360,5.84652395,2951.1,2950.8,0.001]
[1765957362568,7.12482239,2951.1,2950.8,0.001]
[1765957363961,6.71931839,2951.1,2950.8,0.001]
[1765957364263,2.79175142,2951.1,2950.8,0.001]
[1765957364470,1.04907275,2951.1,2950.8,0.001]
[1765957368775,4.43763972,2951.1,2950.8,0.001]
[1765957369771,1.04907275,2951.1,2950.8,0.001]
[1765957370391,4.43763972,2951.1,2950.8,0.001]
[1765957374162,1.04907275,2951.1,2950.8,0.001]
[1765957374362,1.83186594,2951.1,2950.8,0.001]
[1765957374788,5.22043291,2951.1,2950.8,0.001]
[1765957374994,1.83186594,2951.1,2950.8,0.001]
[1765957375797,1.65489319,2951.1,2950.8,0.001]
[1765957375971,0.8721,2951.1,2950.8,0.001]
[1765957376168,0.489,2951.3,2950.8,0.001]
[1765957376672,0.3862,2951.1,2950.8,0.001]
[1765957377473,0.8722,2951.1,2950.8,0.001]
[1765957380586,0.3862,2951.1,2950.8,0.001]
[1765957382099,0.8722,2951.1,2950.8,0.001]
[1765957385196,1.29846295,2951.1,2950.8,0.001]
[1765957386892,0.8722,2951.1,2950.8,0.001]
[1765957390911,0.3862,2951.1,2950.8,0.001]
[1765957391072,0.4773,2951.3,2951.0,0.4989]
[1765957391680,0.4773,2951.3,2951.0,0.001]
[1765957392075,0.8723,2951.1,2951.0,0.001]
[1765957395801,0.002,2951.3,2951.0,0.001]
[1765957395999,0.4773,2951.3,2951.0,0.001]
[1765957396498,0.002,2951.3,2951.0,0.001]
[1765957396687,0.002,2951.3,2951.0,0.4706]
[1765957396894,0.002,2951.3,2951.0,0.001]
[1765957397094,0.4773,2951.3,2951.0,0.001]
[1765957398489,0.3977,2951.1,2951.0,0.001]
[1765957398990,0.8723,2951.1,2951.0,0.001]
[1765957403283,1.29856541,2951.1,2951.0,0.001]
[1765957405375,0.8723,2951.1,2951.0,0.001]
[1765957414517,0.002,2951.3,2951.0,0.001]
[1765957414819,0.4693,2951.3,2951.0,0.001]
[1765957415311,0.002,2951.3,2951.0,0.001]
[1765957415515,0.002,2951.3,2951.0,1.60587009]
[1765957416096,0.002,2951.3,2951.2,0.4923]
[1765957416323,0.002,2951.3,2951.2,0.9451]
[1765957416614,0.002,2951.3,2951.2,4.33355215]
[1765957416788,0.002,2951.3,2951.2,0.4923]
[1765957417435,0.002,2951.3,2951.2,3.88075215]
[1765957418722,0.002,2951.3,2951.2,8.67469225]
[1765957418894,0.002,2951.3,2951.2,9.21369225]
[1765957419601,0.002,2951.3,2951.2,5.66478332]
[1765957422521,0.002,2951.3,2951.2,4.41975215]
[1765957423520,0.002,2951.3,2951.2,4.87255215]
[1765957423818,0.002,2951.3,2951.2,4.41975215]
[1765957424749,0.052,2953.7,2953.6,0.9448]
[1765957425023,0.002,2953.9,2953.6,0.9448]
[1765957425024,0.002,2954.6,2954.5,0.9448]
[1765957425225,0.002,2954.6,2954.5,1.4858]
[1765957425517,0.002,2954.6,2954.5,12.43266554]
[1765957425720,0.002,2954.6,2954.5,8.88375661]
[1765957425917,0.002,2954.6,2954.5,8.34275661]
[1765957426318,0.002,2954.6,2954.5,8.88375661]
[1765957427017,0.002,2954.6,2954.5,5.33484768]
[1765957428017,0.002,2954.6,2954.5,5.33384768]
[1765957428220,0.002,2954.6,2954.5,3.38466745]
[1765957428411,0.002,2954.6,2954.5,3.92466745]
[1765957428613,0.002,2954.6,2954.5,4.41666745]
[1765957428791,0.002,2954.6,2954.5,3.87666745]
[1765957428994,0.002,2954.6,2954.5,4.41666745]
[1765957430397,0.4622,2954.5,2954.4,3.38477193]
[1765957430694,0.4622,2954.5,2954.4,3.92477193]
[1765957431009,0.0046,2954.5,2954.4,3.92477193]
[1765957432122,0.4558,2954.4,2954.3,3.38485908]
[1765957432498,0.4558,2954.4,2954.3,3.92485908]
[1765957432699,0.4558,2954.4,2954.3,3.38485908]
[1765957432894,0.4558,2954.4,2954.3,3.92485908]
[1765957433115,0.002,2954.6,2954.5,3.87666745]
[1765957436626,0.4578,2954.6,2954.5,3.87666745]
[1765957436829,0.0046,2954.3,2954.2,3.38501117]
[1765957437128,0.4622,2954.3,2954.2,3.92501117]
[1765957437305,0.0046,2954.3,2954.2,3.92501117]
[1765957437509,0.002,2954.6,2954.2,8.25482234]
[1765957437902,0.002,2954.6,2954.2,7.80202234]
[1765957438142,0.4596,2954.6,2954.2,7.80202234]
[1765957438425,0.002,2954.6,2954.2,7.80202234]
[1765957438630,0.002,2954.6,2954.2,8.25482234]
[1765957438928,0.002,2954.6,2954.2,7.80202234]
[1765957439230,0.4596,2954.6,2954.2,7.26202234]
[1765957439427,0.4596,2954.6,2954.3,0.54]
[1765957440028,0.3831,2954.4,2954.3,0.54]
[1765957440359,0.8407,2954.3,2954.2,3.38501117]
[1765957440504,0.8407,2954.3,2954.2,3.92501117]
[1765957441007,0.4558,2954.3,2954.2,3.92501117]
[1765957441713,0.3793,2953.9,2953.8,3.38546161]
[1765957442231,0.4576,2954.5,2953.8,7.80193117]
[1765957442429,0.4558,2954.2,2954.1,0.001]
[1765957442731,0.3849,2954.4,2954.1,0.001]
[1765957442923,0.0046,2954.2,2954.1,0.001]
[1765957443122,0.0046,2954.2,2954.1,0.54]
[1765957443536,0.0046,2954.2,2954.1,0.001]
[1765957443740,0.0046,2954.2,2954.1,0.54]
[1765957444645,0.0046,2954.2,2954.1,3.92512575]
[1765957444816,0.0046,2954.2,2954.1,0.54]
[1765957445459,0.0046,2954.2,2954.1,3.92512575]
[1765957445608,0.4645,2954.2,2954.1,0.54]
[1765957445804,0.4645,2954.2,2954.1,0.001]
[1765957446009,0.4645,2954.2,2954.1,0.54]
[1765957447269,0.4645,2954.2,2954.1,0.001]
[1765957447459,0.4645,2954.2,2954.1,0.54]
[1765957448233,0.4645,2954.2,2954.1,0.001]
[1765957448434,0.4645,2954.2,2954.1,0.54]
[1765957451778,4.23443974,2954.2,2954.1,0.54]
[1765957452656,0.84942857,2954.2,2954.1,0.54]
[1765957452868,0.0046,2954.2,2954.1,0.54]
[1765957453056,0.4645,2954.2,2954.1,0.54]
[1765957456775,0.4645,2954.2,2954.1,0.001]
[1765957457069,3.84951117,2954.2,2954.1,0.54]
[1765957457440,0.4645,2954.2,2954.1,0.54]
[1765957458769,0.4645,2954.2,2954.1,0.001]
[1765957459080,3.84951117,2954.2,2954.1,0.54]
[1765957459274,3.85151117,2954.2,2954.1,0.54]
[1765957461248,3.85151117,2954.2,2954.1,0.001]
[1765957461451,3.85151117,2954.2,2954.1,0.54]
[1765957461452,4.57514223,2954.2,2954.1,0.54]
[1765957461659,4.57514223,2954.2,2954.1,0.001]
[1765957461859,4.98064623,2954.2,2954.1,0.001]
[1765957463753,5.44502646,2954.2,2954.1,0.001]
[1765957464384,0.4665,2954.2,2954.1,0.001]
[1765957464585,3.85151117,2954.2,2954.1,0.001]
[1765957470590,10.31151117,2954.2,2954.1,0.001]
[1765957472970,10.71701517,2954.2,2954.1,0.001]
[1765957474269,10.71701517,2954.2,2954.0,0.001]
[1765957474270,1.70968423,2954.1,2954.0,0.001]
[1765957474469,3.94302174,2954.1,2954.0,0.001]
[1765957475092,7.32814749,2954.1,2954.0,0.001]
[1765957476489,13.78814749,2954.1,2954.0,0.001]
[1765957477287,0.0046,2953.3,2953.2,0.538]
[1765957477600,0.4901,2953.3,2953.2,0.538]
[1765957484302,0.4855,2953.7,2953.3,0.4516]
[1765957484507,3.38550839,2953.8,2953.3,0.4516]
[1765957484508,4.05919812,2953.9,2953.3,0.4516]